bitfinex/quotes_SOLUSD_20260310
["timestamp","ask_amount","ask_price","bid_price","bid_amount"]
[1773133685397,2.18915224,86.831,86.801,2.29878627]
[1773133685802,11.51675688,86.83,86.801,2.29878627]
[1773133686003,13.70590912,86.83,86.801,2.29878627]
[1773133686202,2.18915224,86.829,86.801,2.29878627]
[1773133687211,2.18915224,86.827,86.795,2.29878627]
[1773133689306,2.18915224,86.825,86.796,2.29878627]
[1773133691511,2.18915224,86.823,86.796,2.29878627]
[1773133691911,2.18915224,86.823,86.798,2.29878627]
[1773133692114,2.18915224,86.823,86.801,2.29878627]
[1773133692797,2.18915224,86.819,86.795,2.29878627]
[1773133693516,13.70750096,86.818,86.795,2.29878627]
[1773133693709,2.18915224,86.817,86.795,2.29878627]
[1773133695028,11.51861408,86.816,86.795,2.29878627]
[1773133695613,11.51813005,86.82,86.797,2.29878627]
[1773133697407,11.51813005,86.82,86.801,2.29878627]
[1773133698418,2.18915224,86.83,86.801,2.29878627]
[1773133698600,11.51688951,86.829,86.801,2.29878627]
[1773133699011,13.70604175,86.829,86.801,2.29878627]
[1773133699215,2.18915224,86.828,86.801,2.29878627]
[1773133699520,11.5171548,86.827,86.801,2.29878627]
[1773133699922,13.70630704,86.827,86.801,2.29878627]
[1773133703204,2.18915224,86.826,86.801,2.29878627]
[1773133703630,2.18915224,86.826,86.803,2.29878627]
[1773133704911,11.51742009,86.825,86.803,2.29878627]
[1773133705518,11.51669408,86.831,86.805,2.29878627]
[1773133705913,2.18915224,86.83,86.799,2.29878627]
[1773133706119,11.51669408,86.831,86.801,2.29878627]
[1773133706322,13.70584632,86.831,86.801,2.29878627]
[1773133706710,2.18915224,86.83,86.801,2.29878627]
[1773133707237,11.51556328,86.839,86.803,2.29878627]
[1773133707530,5.88298626,86.845,86.802,11.52047187]
[1773133707531,11.51506376,86.843,86.821,2.29878627]
[1773133708822,2.18915224,86.842,86.821,2.29878627]
[1773133709536,2.18915224,86.84,86.815,2.29878627]
[1773133711535,2.18915224,86.84,86.81,4.07846442]
[1773133711536,2.18915224,86.839,86.81,6.37725069]
[1773133711729,2.18915224,86.839,86.811,2.29878627]
[1773133712840,2.18915224,86.837,86.811,2.29878627]
[1773133713012,2.18915224,86.837,86.806,2.29878627]
[1773133713415,2.18915224,86.837,86.81,4.07846442]
[1773133713636,2.18915224,86.837,86.81,6.30112672]
[1773133714510,2.17037436,86.835,86.81,6.30112672]
[1773133714844,2.17037436,86.835,86.811,2.2226623]
[1773133715519,11.51596112,86.836,86.812,2.2226623]
[1773133716944,2.17037436,86.836,86.812,2.2226623]
[1773133719444,11.51609374,86.835,86.812,2.2226623]
[1773133720942,2.17037436,86.839,86.812,2.2226623]
[1773133722050,2.17037436,86.839,86.814,2.2226623]
[1773133722247,2.17037436,86.844,86.821,2.2226623]
[1773133723659,11.51503287,86.843,86.821,2.2226623]
[1773133723872,13.68540723,86.843,86.821,2.2226623]
[1773133724075,11.51503287,86.843,86.821,2.2226623]
[1773133724266,2.17037436,86.842,86.821,2.2226623]
[1773133724660,2.17037436,86.839,86.811,2.2226623]
[1773133726092,11.51569589,86.838,86.811,2.2226623]
[1773133726372,2.17037436,86.837,86.811,2.2226623]
[1773133726549,2.17037436,86.837,86.802,11.52040566]
[1773133726751,2.17037436,86.829,86.803,2.2226623]
[1773133728266,13.68739651,86.828,86.804,2.2226623]
[1773133728474,11.51702215,86.828,86.804,2.2226623]
[1773133730378,13.68739651,86.828,86.804,2.2226623]
[1773133730982,2.29096611,86.827,86.804,2.2226623]
[1773133732586,11.51728744,86.826,86.804,2.2226623]
[1773133733506,11.51662424,86.831,86.811,2.31998548]
[1773133734287,13.80759035,86.831,86.811,2.31998548]
[1773133734976,2.29096611,86.836,86.811,2.31998548]
[1773133738297,2.29096611,86.834,86.811,2.31998548]
[1773133740494,11.51635898,86.833,86.811,2.31998548]
[1773133740700,2.29096611,86.832,86.811,2.31998548]
[1773133741686,11.51662424,86.831,86.811,2.31998548]
[1773133742088,11.5146351,86.846,86.821,2.31998548]
[1773133742293,11.5146351,86.846,86.84,4.07846442]
[1773133742479,11.71417575,86.85,86.84,6.3984499]
[1773133742678,11.71417575,86.85,86.841,2.31998548]
[1773133742988,11.71417575,86.85,86.84,4.07846442]
[1773133742989,11.71278831,86.86,86.846,2.31998548]
[1773133744406,11.71278831,86.86,86.851,2.22925227]
[1773133744592,11.71278831,86.86,86.85,6.30771669]
[1773133746499,11.71278831,86.86,86.851,2.22925227]
[1773133747693,0.2,86.88,86.85,4.07846442]
[1773133748013,0.2,86.88,86.871,2.22925227]
[1773133748192,0.2,86.88,86.87,4.07846442]
[1773133748401,0.2,86.88,86.871,2.22925227]
[1773133748910,11.50717674,86.903,86.872,2.22925227]
[1773133749088,40.27488326,86.903,86.88,4.07846442]
[1773133749296,40.27488326,86.903,86.876,2.22925227]
[1773133749986,40.27488326,86.903,86.88,4.07846442]
[1773133750588,28.76770652,86.903,86.881,2.22925227]
[1773133750999,2.20234823,86.902,86.881,2.22925227]
[1773133751792,2.20234823,86.902,86.87,4.07846442]
[1773133752397,2.20234823,86.902,86.88,4.07846442]
[1773133752804,4.27846442,86.91,86.84,4.07846442]
[1773133752805,2.20234823,86.9,86.87,4.07846442]
[1773133753603,2.20234823,86.9,86.871,2.22925227]
[1773133753796,2.20234823,86.9,86.88,4.07846442]
[1773133755204,2.20234823,86.898,86.88,4.07846442]
[1773133756715,2.20234823,86.898,86.88,6.30771669]
[1773133756920,11.50787714,86.897,86.881,2.22925227]
[1773133757215,13.71022537,86.897,86.881,2.22925227]
[1773133758201,2.20234823,86.896,86.88,4.07846442]
[1773133758403,2.20234823,86.896,86.871,2.22925227]
[1773133759022,2.20234823,86.894,86.871,2.22925227]
[1773133759721,2.20234823,86.894,86.84,4.07846442]
[1773133759722,2.20234823,86.894,86.88,4.07846442]
[1773133760014,2.20234823,86.909,86.881,2.22925227]
[1773133760604,2.20234823,86.909,86.89,4.07846442]
[1773133760913,2.20234823,86.909,86.888,2.22925227]
[1773133760914,11.50642058,86.908,86.888,2.22925227]
[1773133761104,2.20234823,86.907,86.888,2.22925227]
[1773133761703,4.27846442,86.92,86.901,2.22925227]
[1773133761704,0.2,86.92,86.901,2.22925227]
[1773133762001,13.70731262,86.919,86.9,4.07846442]
[1773133762206,2.20234823,86.918,86.9,4.07846442]
[1773133762401,2.20234823,86.918,86.89,4.07846442]
[1773133762597,2.20234823,86.918,86.84,4.07846442]
[1773133762598,2.20234823,86.909,86.881,11.50998193]
[1773133762804,2.20234823,86.899,86.87,4.07846442]
[1773133763205,2.20234823,86.897,86.87,15.58984373]
[1773133763807,2.20234823,86.897,86.871,1.49796306]
[1773133764122,2.20234823,86.895,86.872,11.51118887]
[1773133764718,2.20234823,86.895,86.87,4.07846442]
[1773133765117,2.20234823,86.895,86.868,11.51165162]
[1773133765313,2.20234823,86.895,86.87,4.07846442]
[1773133765718,2.20234823,86.895,86.87,4.07167334]
[1773133766918,2.20234823,86.895,86.871,13.01017701]
[1773133767299,2.20234823,86.895,86.872,1.49885563]
[1773133767516,2.20234823,86.895,86.88,4.07167334]
[1773133767719,2.20234823,86.895,86.872,1.49885563]
[1773133768118,2.20234823,86.895,86.88,4.07167334]
[1773133768427,2.20234823,86.917,86.881,1.49914003]
[1773133769009,2.20234823,86.915,86.88,4.07167334]
[1773133769808,2.20234823,86.909,86.87,4.07167334]
[1773133771628,2.20234823,86.907,86.871,13.01156821]
[1773133771810,2.20234823,86.907,86.858,28.78228243]
[1773133772019,2.20234823,86.907,86.87,4.07167334]
[1773133772926,2.20234823,86.907,86.88,4.07167334]
[1773133773122,2.20234823,86.907,86.881,1.50051802]
[1773133773931,11.50668538,86.906,86.89,4.07167334]
[1773133774236,11.50668538,86.906,86.89,5.57268845]
[1773133775915,2.18122495,86.905,86.88,4.07167334]
[1773133777924,2.18122495,86.905,86.88,5.57365432]
[1773133779333,2.18122495,86.905,86.881,11.50999643]
[1773133779520,2.18122495,86.903,86.881,13.0124668]
[1773133780526,2.18122495,86.903,86.881,1.50247037]
[1773133780827,2.18122495,86.917,86.891,1.50270906]
[1773133781736,2.18122495,86.915,86.9,4.07167334]
[1773133782322,2.38122495,86.92,86.9,4.07167334]
[1773133782635,2.18122495,86.919,86.901,1.50319991]
[1773133785143,2.18122495,86.909,86.88,4.07167334]
[1773133785742,2.18122495,86.909,86.88,5.57556161]
[1773133786043,2.18122495,86.907,86.881,1.50388827]
[1773133786242,2.18122495,86.907,86.881,13.0138847]
[1773133786440,2.18122495,86.907,86.89,4.07167334]
[1773133786630,2.18122495,86.907,86.882,1.50388827]
[1773133786820,2.18122495,86.907,86.88,4.07167334]
[1773133787028,2.18122495,86.907,86.831,1.15166242]
[1773133787246,2.18122495,86.907,86.793,46.0864981]
[1773133787247,4.07167334,86.85,86.823,1.50411248]
[1773133787561,2.18122495,86.829,86.794,11.52142625]
[1773133787726,2.18122495,86.829,86.8,1.60434575]
[1773133788046,2.18122495,86.827,86.801,13.02495035]
[1773133788239,2.18122495,86.827,86.802,1.5045677]
[1773133788453,2.18122495,86.827,86.8,0.1]
[1773133788827,2.1226135,86.809,86.78,4.07167334]
[1773133789025,11.51636985,86.833,86.801,1.60479202]
[1773133789249,11.51636985,86.833,86.773,11.52432208]
[1773133789250,4.07167334,86.82,86.791,1.60479202]
[1773133789539,4.07167334,86.82,86.781,1.60506409]
[1773133789540,2.1226135,86.819,86.781,1.60506409]
[1773133789926,2.1226135,86.819,86.773,40.33512728]
[1773133789927,2.1226135,86.818,86.79,4.07167334]
[1773133790247,2.1226135,86.818,86.791,1.60506409]
[1773133791938,2.1226135,86.809,86.767,1.60558688]
[1773133792143,2.1226135,86.799,86.767,1.60558688]
[1773133792334,2.1226135,86.799,86.771,1.60558688]
[1773133792643,2.1226135,86.799,86.761,40.34070607]
[1773133792644,2.1226135,86.849,86.791,1.60587801]
[1773133792830,2.1226135,86.849,86.811,1.60587801]
[1773133793237,2.1226135,86.839,86.811,1.60587801]
[1773133794642,2.1226135,86.837,86.813,1.6064128]
[1773133796046,11.51514638,86.843,86.821,1.60666944]
[1773133800249,2.1226135,86.843,86.821,1.60666944]
[1773133800563,2.1226135,86.85,86.821,1.60666944]
[1773133800851,2.1226135,86.858,86.831,1.6078609]
[1773133801055,2.1226135,86.869,86.841,1.6078609]
[1773133802430,2.1226135,86.888,86.86,4.07167334]
[1773133802631,2.1226135,86.888,86.819,46.07238426]
[1773133802632,2.1226135,86.869,86.831,11.51662424]
[1773133802842,2.1226135,86.869,86.832,1.60829502]
[1773133806754,2.2432021,86.867,86.834,1.60943796]
[1773133807344,2.2432021,86.867,86.841,1.60943796]
[1773133808354,2.2432021,86.865,86.841,1.60943796]
[1773133808553,2.2432021,86.859,86.83,4.07167334]
[1773133808749,2.2432021,86.859,86.831,1.60980561]
[1773133809459,2.2432021,86.859,86.827,11.51713366]
[1773133810164,2.2432021,86.859,86.83,4.07167334]
[1773133810358,2.2432021,86.857,86.831,11.51662424]
[1773133811062,2.2432021,86.839,86.802,1.61021297]
[1773133811363,2.2432021,86.839,86.81,4.07167334]
[1773133811754,2.2432021,86.839,86.811,1.61041267]
[1773133812848,2.2432021,86.839,86.812,11.51914481]
[1773133813054,2.2432021,86.839,86.813,1.61014227]
[1773133814459,11.51569589,86.838,86.813,1.61014227]
[1773133815163,2.2432021,86.837,86.813,1.61014227]
[1773133815468,40.29998043,86.849,86.821,1.60939448]
[1773133815469,2.2432021,86.844,86.821,1.60939448]
[1773133816366,2.2432021,86.844,86.815,1.60939448]
[1773133817569,2.2432021,86.842,86.82,4.07167334]
[1773133818457,2.2432021,86.842,86.815,1.60939448]
[1773133818949,2.2432021,86.839,86.81,4.07167334]
[1773133819150,2.2432021,86.839,86.8,15.59241066]
[1773133819366,2.2432021,86.839,86.801,1.60868273]
[1773133820763,2.2432021,86.837,86.802,11.52047187]
[1773133820954,11.51569589,86.838,86.811,1.60822484]
[1773133821762,2.2432021,86.837,86.811,1.60822484]
[1773133822954,2.2432021,86.837,86.813,1.60776111]
[1773133824270,2.2432021,86.835,86.8,1.60756376]
[1773133824462,2.2432021,86.835,86.801,1.60734218]
[1773133824860,2.2432021,86.827,86.792,1.60734218]
[1773133825063,2.2432021,86.848,86.817,1.60734218]
[1773133826751,11.51375318,86.853,86.831,1.60696472]
[1773133827370,13.75695528,86.853,86.831,1.60696472]
[1773133828576,2.2432021,86.852,86.831,1.60696472]
[1773133829162,2.2432021,86.859,86.84,5.68203654]
[1773133829476,2.2432021,86.859,86.832,1.6065645]
[1773133831558,2.2432021,86.867,86.841,1.60592906]
[1773133831753,2.2432021,86.867,86.84,4.07547204]
[1773133831754,2.2432021,86.889,86.861,1.60592906]
[1773133832178,2.2432021,86.889,86.86,4.07547204]
[1773133832978,2.2432021,86.889,86.86,5.68118817]
[1773133833171,2.2432021,86.887,86.86,17.19391908]
[1773133833573,2.2432021,86.887,86.861,1.60529577]
[1773133833978,2.2432021,86.887,86.87,4.07547204]
[1773133836180,2.35649808,86.897,86.88,4.07547204]
[1773133836559,2.35649808,86.897,86.871,13.1162149]
[1773133837069,2.35649808,86.895,86.871,11.51132138]
[1773133840370,11.50800957,86.896,86.88,4.07547204]
[1773133840962,11.50687557,86.905,86.88,4.07547204]
[1773133841164,2.35649808,86.913,86.9,4.07547204]
[1773133841477,2.35649808,86.913,86.89,4.07547204]
[1773133843184,2.35649808,86.911,86.88,4.07547204]
[1773133843381,2.35649808,86.911,86.89,4.07547204]
[1773133844070,2.35649808,86.911,86.869,1.02888839]
[1773133844381,2.35649808,86.909,86.88,4.07547204]
[1773133844988,40.27061855,86.912,86.881,1.97240049]
[1773133845288,2.35649808,86.911,86.881,1.97240049]
[1773133845984,2.35649808,86.911,86.88,4.07547204]
[1773133845985,2.35649808,86.909,86.88,4.07547204]
[1773133847468,2.35649808,86.909,86.874,1.97333603]
[1773133848780,2.35649808,86.907,86.88,4.07547204]
[1773133848977,2.35649808,86.907,86.88,6.0515477]
[1773133850189,2.35649808,86.905,86.88,6.0515477]
[1773133851089,2.29540231,86.909,86.89,4.07547204]
[1773133851680,2.29540231,86.909,86.887,1.97873297]
[1773133852293,0.2,86.92,86.901,1.97959654]
[1773133852588,11.50496439,86.919,86.901,1.97959654]
[1773133852777,2.29540231,86.918,86.9,4.07547204]
[1773133853595,0.2,86.92,86.901,1.98130273]
[1773133855097,0.2,86.92,86.901,13.48863203]
[1773133855278,0.2,86.92,86.91,6.05758906]
[1773133855475,11.5036409,86.929,86.911,1.98211702]
[1773133856170,0.2,86.93,86.92,4.07547204]
[1773133856382,11.50228421,86.94,86.921,1.78406838]
[1773133856581,2.29540231,86.958,86.931,1.78406838]
[1773133858001,2.29540231,86.958,86.924,1.78502151]
[1773133858299,2.29540231,86.956,86.924,1.78502151]
[1773133858680,2.29540231,86.956,86.93,4.07547204]
[1773133860174,2.29540231,86.954,86.93,5.86240412]
[1773133860380,11.50020125,86.955,86.94,4.07547204]
[1773133860580,11.50020125,86.955,86.937,1.78693208]
[1773133861102,13.79560356,86.955,86.931,13.29123317]
[1773133861397,2.29540231,86.954,86.93,4.07547204]
[1773133862000,2.29540231,86.954,86.925,1.78785693]
[1773133862197,2.29540231,86.937,86.904,11.50684675]
[1773133862802,2.29540231,86.937,86.903,11.5070826]
[1773133863012,2.29540231,86.937,86.903,13.29680122]
[1773133863300,40.25857507,86.938,86.88,4.07547204]
[1773133863301,2.29540231,86.919,86.882,1.78971862]
[1773133864379,2.32582749,86.909,86.877,11.51052637]
[1773133864585,2.32582749,86.909,86.88,5.86787388]
[1773133864781,2.32582749,86.909,86.881,1.79240184]
[1773133866520,2.32582749,86.907,86.874,1.7941075]
[1773133867804,2.32582749,86.929,86.891,1.79495943]
[1773133868016,2.32582749,86.94,86.92,4.07547204]
[1773133868749,2.32582749,86.947,86.92,4.07547204]
[1773133869123,2.32582749,86.947,86.92,5.87127148]
[1773133871220,11.50139166,86.946,86.92,4.07547204]
[1773133871432,2.32582749,86.945,86.92,4.07547204]
[1773133871634,2.32582749,86.945,86.92,10.89326083]
[1773133872832,2.32582749,86.943,86.92,10.89326083]
[1773133873233,2.32582749,86.943,86.92,24.19669137]
[1773133874623,2.32582749,86.943,86.91,10.89326083]
[1773133874926,2.32582749,86.939,86.9,10.89326083]
[1773133875430,2.32582749,86.939,86.9,12.69292493]
[1773133875828,2.32582749,86.939,86.902,11.50711071]
[1773133876031,2.32582749,86.939,86.903,1.80016979]
[1773133876327,2.32582749,86.929,86.895,1.80016979]
[1773133876529,2.32582749,86.929,86.895,13.30827956]
[1773133876936,2.32582749,86.927,86.895,13.30827956]
[1773133877441,2.32582749,86.927,86.891,1.80110796]
[1773133878333,2.32582749,86.927,86.893,11.5083019]
[1773133878938,2.32582749,86.907,86.881,11.50992884]
[1773133880543,2.32582749,86.905,86.881,11.50992884]
[1773133880927,2.32582749,86.899,86.874,11.51081608]
[1773133883748,2.32582749,86.897,86.874,11.51081608]
[1773133884241,2.32582749,86.897,86.874,13.31465958]
[1773133885739,2.32582749,86.889,86.851,1.804668]
[1773133886628,2.32582749,86.879,86.851,1.804668]
[1773133886947,2.32582749,86.869,86.833,1.80507853]
[1773133887460,2.32582749,86.869,86.837,11.51578945]
[1773133887641,11.51171892,86.868,86.837,11.51578945]
[1773133887840,2.32582749,86.867,86.837,11.51578945]
[1773133888247,2.32582749,86.859,86.837,11.51578945]
[1773133888624,11.51171892,86.868,86.841,1.80592451]
[1773133888829,2.32582749,86.871,86.841,1.80592451]
[1773133889054,2.32582749,86.869,86.841,1.80592451]
[1773133889737,11.51171892,86.868,86.842,1.80632283]
[1773133889937,13.83754641,86.868,86.842,1.80632283]
[1773133890844,13.83754641,86.868,86.843,11.51503287]
[1773133891045,11.51171892,86.868,86.844,1.80674127]
[1773133891941,13.83686753,86.874,86.844,1.80674127]
[1773133892339,2.32582749,86.873,86.844,1.80674127]
[1773133893643,2.35895431,86.871,86.844,1.80674127]
[1773133893846,2.35895431,86.869,86.844,1.80674127]
[1773133895856,11.51171892,86.868,86.844,1.80674127]
[1773133897344,11.51171892,86.868,86.845,1.80956263]
[1773133898860,2.35895431,86.875,86.847,1.81033373]
[1773133899440,11.51087014,86.875,86.847,1.81033373]
[1773133899657,2.35895431,86.874,86.847,1.81033373]
[1773133901057,2.35895431,86.872,86.848,13.3254254]
[1773133903649,2.35895431,86.869,86.832,11.51649161]
[1773133903839,2.35895431,86.869,86.833,1.81215288]
[1773133905666,2.35895431,86.869,86.832,11.51649161]
[1773133905667,2.35895431,86.927,86.861,1.81287162]
[1773133905837,11.50377323,86.928,86.853,1.81287162]
[1773133905838,2.35895431,86.919,86.853,1.81287162]
[1773133906158,2.35895431,86.919,86.852,40.29843871]
[1773133906159,2.35895431,86.899,86.86,4.07452785]
[1773133906366,2.35895431,86.899,86.87,4.07452785]
[1773133906544,2.35895431,86.899,86.868,1.81287162]
[1773133906862,2.35895431,86.899,86.871,1.813239]
[1773133908652,2.35895431,86.899,86.87,4.07452785]
[1773133908653,2.35895431,86.899,86.88,4.07452785]
[1773133909567,2.35895431,86.899,86.872,11.51118887]
[1773133909568,2.35895431,86.899,86.873,1.81470105]
[1773133911171,2.35895431,86.899,86.88,4.07452785]
[1773133913971,2.24600206,86.905,86.89,4.07452785]
[1773133915763,2.24600206,86.903,86.875,11.51075385]
[1773133916774,11.50721502,86.902,86.88,4.07452785]
[1773133916960,2.24600206,86.901,86.88,4.07452785]
[1773133919781,2.24600206,86.899,86.88,4.07452785]
[1773133920463,2.24600206,86.899,86.875,11.51067477]
[1773133920975,2.24600206,86.899,86.88,4.07452785]
[1773133921558,2.24600206,86.899,86.875,1.81838879]
[1773133921759,2.24600206,86.899,86.88,4.07452785]
[1773133922486,2.24600206,86.897,86.87,4.07452785]
[1773133923082,11.50800957,86.896,86.87,4.07452785]
[1773133923274,2.24600206,86.895,86.87,4.07452785]
[1773133923672,2.24600206,86.895,86.86,1.81904411]
[1773133923879,2.24600206,86.895,86.861,1.81967255]
[1773133924072,2.24600206,86.895,86.87,4.07452785]
[1773133925193,11.50827444,86.894,86.87,4.07452785]
[1773133925490,28.76685545,86.906,86.881,1.82024348]
[1773133925491,2.15892359,86.906,86.881,1.82024348]
[1773133925702,2.15892359,86.906,86.89,4.07452785]
[1773133925865,2.15892359,86.906,86.881,1.82024348]
[1773133927580,2.15892359,86.913,86.891,1.82082525]
[1773133928188,2.15892359,86.936,86.901,1.82082525]
[1773133928391,2.15892359,86.936,86.92,4.07452785]
[1773133928587,28.75050313,86.955,86.92,4.07452785]
[1773133929176,28.75050313,86.955,86.882,97.83384359]
[1773133929177,28.75050313,86.955,86.93,4.07452785]
[1773133930680,2.15892359,86.954,86.92,4.07452785]
[1773133931086,2.15892359,86.954,86.92,6.44263091]
[1773133931883,2.15892359,86.952,86.92,6.44263091]
[1773133933382,2.15892359,86.952,86.921,13.87280272]
[1773133933582,2.15892359,86.952,86.922,2.36810306]
[1773133936984,2.15892359,86.952,86.908,28.76590811]
[1773133936985,2.15892359,86.949,86.91,4.07452785]
[1773133937190,2.15892359,86.939,86.91,4.07452785]
[1773133937671,2.15892359,86.939,86.91,6.44263091]
[1773133937868,2.15892359,86.939,86.91,4.07452785]
[1773133938188,2.15892359,86.929,86.9,4.07452785]
[1773133938772,2.15892359,86.927,86.901,11.50734744]
[1773133940383,11.50326571,86.932,86.911,2.36810306]
[1773133940885,2.15892359,86.943,86.911,2.36810306]
[1773133941081,2.15892359,86.949,86.921,2.36810306]
[1773133941473,2.15892359,86.948,86.921,2.36810306]
[1773133941994,2.15892359,86.948,86.913,2.36810306]
[1773133942370,4.07452785,86.94,86.906,2.36810306]
[1773133942569,2.15892359,86.939,86.907,2.36810306]
[1773133943072,2.15892359,86.937,86.907,2.36810306]
[1773133943274,2.15892359,86.937,86.909,2.36810306]
[1773133944090,11.50185912,86.943,86.921,2.36810306]
[1773133946587,11.50185912,86.943,86.922,2.36810306]
[1773133946789,4.27452785,86.96,86.931,2.36810306]
[1773133946790,1e-08,86.96,86.931,2.36810306]
[1773133946996,2.35892359,87.0,86.951,2.36810306]
[1773133947300,2.15892359,86.989,86.95,6.44263091]
[1773133947522,2.15892359,86.989,86.96,4.07452785]
[1773133947702,2.15892359,86.987,86.96,4.07452785]
[1773133947878,0.2,86.99,86.97,4.07452785]
[1773133948079,0.2,86.99,86.98,4.07452785]
[1773133948279,0.2,86.99,86.971,2.36810306]
[1773133950897,0.2,86.99,86.98,4.06181405]
[1773133951804,2.15892359,86.988,86.952,2.36810306]
[1773133952102,2.15892359,86.986,86.96,4.06181405]
[1773133952299,4.26181405,86.99,86.971,2.36810306]
[1773133952300,0.2,86.99,86.971,2.36810306]
[1773133952500,2.15892359,86.988,86.97,4.06181405]
[1773133952707,2.15892359,86.988,86.96,4.06181405]
[1773133953290,2.15892359,86.988,86.953,11.50046576]
[1773133954895,2.32900785,86.986,86.953,13.66532122]
[1773133955206,2.32900785,86.986,86.96,4.06181405]
[1773133955408,2.32900785,86.986,86.961,2.16485546]
[1773133955611,2.32900785,86.988,86.961,2.16485546]
[1773133958082,2.32900785,86.979,86.95,4.06181405]
[1773133958608,2.32900785,86.979,86.947,2.16485546]
[1773133959405,2.32900785,86.969,86.933,2.16485546]
[1773133959597,2.32900785,86.969,86.935,2.16485546]
[1773133960382,2.32900785,86.978,86.941,2.16485546]
[1773133961502,2.32900785,86.976,86.943,2.16485546]
[1773133961807,2.32900785,86.976,86.951,2.16485546]
[1773133962784,2.32900785,86.982,86.951,2.16485546]
[1773133962988,11.49584593,86.988,86.961,2.16485546]
[1773133963405,0.2,86.99,86.98,4.06181405]
[1773133963608,0.2,86.99,86.975,2.16485546]
[1773133963990,0.2,87.0,86.981,2.16485546]
[1773133964192,55.66341137,87.072,86.992,2.16485546]
[1773133964193,11.49055476,87.028,86.992,2.16485546]
[1773133964509,11.49055476,87.028,87.001,2.16485546]
[1773133964903,11.49055476,87.028,87.0,4.06181405]
[1773133964904,0.2,87.04,87.021,2.16485546]
[1773133965288,2.32900785,87.039,87.001,2.16485546]
[1773133965484,2.32900785,87.038,87.003,2.16485546]
[1773133965704,2.32900785,87.038,86.994,2.16485546]
[1773133965907,2.32900785,87.029,87.0,4.06181405]
[1773133966291,2.32900785,87.029,87.001,2.16485546]
[1773133966796,2.32900785,87.019,86.981,2.16485546]
[1773133967516,40.22156335,87.018,86.981,2.16485546]
[1773133967697,2.32900785,87.009,86.973,2.16485546]
[1773133968502,2.32900785,86.999,86.961,2.16485546]
[1773133969622,2.32900785,86.997,86.962,2.16485546]
[1773133971110,2.32900785,86.997,86.962,13.664131]
[1773133971297,2.32900785,86.997,86.963,2.24742476]
[1773133972710,2.22271137,86.995,86.963,2.24742476]
[1773133975412,2.22271137,86.993,86.965,2.24742476]
[1773133975608,2.22271137,86.993,86.944,28.75413795]
[1773133975609,2.22271137,86.989,86.951,2.24742476]
[1773133976019,2.22271137,86.979,86.951,2.24742476]
[1773133977717,2.22271137,86.977,86.951,2.24742476]
[1773133978017,2.22271137,86.977,86.951,13.7481113]
[1773133978425,2.22271137,86.977,86.952,2.24742476]
[1773133978830,2.22271137,86.977,86.938,2.24742476]
[1773133979002,11.4971602,86.978,86.931,2.24742476]
[1773133979003,2.22271137,86.969,86.931,2.24742476]
[1773133980425,2.22271137,86.968,86.933,2.24742476]
[1773133980610,2.22271137,86.968,86.94,10.88318497]
[1773133980927,2.22271137,86.968,86.938,2.24742476]
[1773133981110,2.22271137,86.959,86.933,2.24742476]
[1773133983838,13.72248365,86.959,86.935,2.34022226]
[1773133984514,2.36915887,86.949,86.928,11.5036479]
[1773133985912,10.88318497,86.96,86.92,13.22340723]
[1773133985913,2.36915887,86.947,86.92,13.22340723]
[1773133986123,2.36915887,86.947,86.921,2.34022226]
[1773133987643,11.50139166,86.946,86.921,2.34022226]
[1773133988239,11.50139166,86.946,86.923,2.34022226]
[1773133990138,2.36915887,86.946,86.923,2.34022226]
[1773133990738,2.36915887,86.946,86.916,2.34022226]
[1773133990925,2.36915887,86.939,86.913,35.86065753]
[1773133991320,2.36915887,86.939,86.914,11.50562625]
[1773133991521,2.36915887,86.939,86.915,2.34022226]
[1773133994153,11.50245002,86.938,86.915,2.34022226]
[1773133994333,11.50245002,86.938,86.92,4.06760286]
[1773133994642,11.50245002,86.938,86.92,6.40782512]
[1773133995641,13.87160889,86.938,86.92,2.34022226]
[1773133995823,2.36915887,86.937,86.92,2.34022226]
[1773133996023,2.36915887,86.937,86.916,13.84558375]
[1773133996323,2.36915887,86.937,86.917,2.34022226]
[1773133996536,11.50245002,86.938,86.917,2.34022226]
[1773133997534,2.36915887,86.938,86.918,11.50509675]
[1773133997844,2.36915887,86.938,86.919,2.34022226]
[1773134001644,2.36915887,86.938,86.918,11.50509675]
[1773134001946,2.36915887,86.938,86.919,2.34022226]
[1773134002129,2.36915887,86.944,86.921,2.34022226]
[1773134004142,2.36915887,86.942,86.921,13.84490333]
[1773134004352,2.36915887,86.942,86.922,2.34022226]
[1773134005146,2.36915887,86.939,86.913,35.86065753]
[1773134006227,4.06760286,86.94,86.914,11.50562625]
[1773134006228,2.36915887,86.937,86.914,11.50562625]
[1773134007040,11.50182607,86.943,86.921,2.34022226]
[1773134007242,11.50109539,86.949,86.921,2.34022226]
[1773134007429,2.36915887,86.956,86.931,2.34022226]
[1773134008129,2.36915887,86.956,86.932,11.50324391]
[1773134008331,2.36915887,86.956,86.933,2.34022226]
[1773134008554,2.36915887,86.955,86.933,2.34022226]
[1773134008735,61.17712538,86.982,86.932,11.50324391]
[1773134008736,2.36915887,86.974,86.941,2.34022226]
[1773134009046,2.36915887,86.974,86.95,4.06760286]
[1773134009226,2.36915887,86.974,86.946,2.34022226]